[Event "Saint Louis Norm Congress-GM 2022"]
[Site "Saint Louis"]
[Date "2022.05.20"]
[Round "3.3"]
[White "Matviishen, Viktor"]
[Black "Belous, Vladimir"]
[Result "0-1"]
[ECO "B51"]
[WhiteElo "2517"]
[BlackElo "2525"]
[Annotator "TA"]
[PlyCount "134"]
[EventDate "2022.05.20"]
[EventType "tourn"]
[EventCountry "USA"]
[SourceTitle "playchess.com"]
[Source "ChessBase"]
[SourceQuality "1"]
[TimeControl "5400+30"]

{[%evp 20,134,37,31,42,41,31,38,34,31,47,39,64,0,47,0,48,54,65,51,45,27,25,27,69,26,62,57,64,68,104,21,12,0,26,0,0,0,0,0,7,-83,-77,-85,-77,-81,-100,-126,-130,-177,-176,-177,-155,-206,-172,-279,-277,-270,-262,-254,-217,-217,-217,-217,-217,-217,-217,-217,-166,-143,-66,-63,-72,-83,-79,-266,-266,-259,-253,-233,-233,-387,-380,-436,-332,-349,-314,-314,-314,-297,-76,-67,-22,-22,-28,-28,-15,-10,-9,-217,-15,-22,-22,-374,-359,-4141,-4141,-4141,-4141,-4141,-4141,-4141,-4141,-4141,-4141,-4141,-4141]} 1. e4 {[%emt 0:00:02]} c5 {[%emt 0:00:13]} 2. Nf3 {[%emt 0:00:06]} Nc6 {[%emt 0:00:07]} 3. Bb5 {[%emt 0:00:09]} d6 {[%emt 0:02:31]} 4. O-O {[%emt 0:00:08]} Bd7 {[%emt 0:00:03]} 5. Re1 {[%emt 0:00:16]} a6 {[%emt 0:00:17]} 6. Bf1 {[%emt 0:01:00]} g6 {[%emt 0:03:41]} 7. c3 {[%emt 0:01:21]} Bg4 {[%emt 0:02:14]} 8. h3 {[%emt 0:01:30]} Bxf3 {[%emt 0:03:02]} 9. Qxf3 {[%emt 0:00:06]} Bg7 {[%emt 0:00:43]} 10. d3 {[%emt 0:00:05]} Nf6 {[%emt 0:00:04]} 11. Be3 {[%emt 0:00:06]} Nd7 {[%emt 0:00:23] B51: Sicilian: Moscow Variation (3 Bb5+) without 3...Bd7.} 12. Nd2 {[%emt 0:03:08]} b5 {[%emt 0:01:45]} 13. Qd1 {[%emt 0:00:34]} O-O {[%emt 0:03:19] White is slightly better.} 14. Nf3 {[%emt 0:00:05]} Nde5 {[%emt 0:00:33]} 15. Nh2 {[%emt 0:01:46]} Nd7 {[%emt 0:02:59]} 16. Nf3 {[%emt 0:02:46]} Nde5 {[%emt 0:00:48]} 17. Nh2 {[%emt 0:07:45]} Nd7 {[%emt 0:00:20]} 18. d4 {[%emt 0:00:33][%cal Bd3d4,Bd4d5][%mdl 32] [#]} b4 $146 {[%emt 0:09:57]} ({Predecessor:} 18... cxd4 19. cxd4 e5 20. Nf3 exd4 21. Nxd4 Nxd4 22. Bxd4 Qe7 23. Bxg7 Kxg7 24. Qd4+ Nf6 25. Rad1 Rfd8 26. f4 Kg8 {1-0 (57) Dobrov,V (2517)-Oganian,M (2370) Samara 2015}) 19. d5 {[%emt 0:05:54]} Na7 {[%emt 0:01:52]} 20. cxb4 {[%emt 0:03:11]} Bxb2 {[%emt 0:04:50] [#]} 21. bxc5 $1 {[%emt 0:00:16] aiming for c6.} Nxc5 {[%emt 0:01:20]} (21... Bxa1 22. Qxa1) 22. Bh6 {[%emt 0:14:56]} Re8 {[%emt 0:03:27]} 23. Rb1 {[%emt 0:00:04]} Bh8 {[%emt 0:01:21][%cal Oa7b5]} 24. Ng4 {[%emt 0:04:06]} Nb5 {[%emt 0:05:23]} 25. Bxb5 {[%emt 0:03:32]} (25. Bd2 $16) 25... axb5 $11 {[%emt 0:00:07]} 26. Rxb5 {[%emt 0:08:47]} Qd7 {[%emt 0:05:11]} 27. Qb1 {[%emt 0:00:38]} Rxa2 $1 {[%emt 0:03:29]} 28. e5 {[%emt 0:00:14]} (28. Rxc5 Ra1 29. Rb5 Rxb1 30. Rexb1 Bg7 $17) 28... Ra1 $1 {[%emt 0:00:53]} 29. Qxa1 {[%emt 0:00:25]} Qxb5 {[%emt 0:00:06]} 30. Qd1 {[%emt 0:08:19]} (30. Qa2 $11) 30... Nd3 $1 $17 {[%emt 0:09:59]} 31. Qe2 {[%emt 0:02:11] exd6 is the strong threat.} Qa5 $1 {[%emt 0:00:11]} (31... Qxd5 $2 32. Rd1 $18) 32. Rd1 {[%emt 0:15:28]} Nxe5 {[%emt 0:00:22][%cal Bd3e5,Be5d7,Bd7c5][%mdl 32]} 33. Ne3 {[%emt 0:00:03]} Qa4 {[%emt 0:01:43]} 34. f4 {[%emt 0:01:38]} (34. Ng4 $17 {might work better.}) 34... Nd7 $19 {[%emt 0:00:26]} 35. Kh2 {[%emt 0:05:11]} Rb8 {[%emt 0:04:33]} 36. Qf3 {[%emt 0:04:40]} (36. Rc1 $17) 36... Nc5 {[%emt 0:01:44]} 37. Bg5 {[%emt 0:05:35]} (37. Nf5 {was necessary.} Bf6 38. Qg4) 37... Rb3 {[%emt 0:00:52][%cal Ob3e3]} 38. Re1 {[%emt 0:00:50]} Bd4 {[%emt 0:01:59]} 39. Qg4 {[%emt 0:00:27] Strongly threatening Qc8+.} f5 {[%emt 0:10:11]} (39... Rxe3 40. Rxe3 f5 41. Qf3 $17) (39... Bxe3 40. Qc8+ Kg7 41. Bh6+ Kf6 42. Rxe3 Rxe3 43. Bg5+ Kg7 44. Bh6+ Kf6 45. Bg5+ Kg7 46. Bh6+ Kf6 $11) 40. Nxf5 {[%emt 0:00:30]} gxf5 {[%emt 0:00:05]} 41. Qxf5 {[%emt 0:00:04]} Qd7 {[%emt 0:00:04] Against Qc8+} 42. Qxd7 {[%emt 0:02:04]} Nxd7 {[%emt 0:00:22]} 43. Rxe7 {[%emt 0:00:34]} Nc5 {[%emt 0:00:29]} 44. g4 {[%emt 0:00:55]} Re3 {[%emt 0:01:52]} (44... Kf8 $1 $17 {[%cal Oh7h6]} 45. Rxh7 Ne4) 45. Kg2 $15 {[%emt 0:00:30]} Ne4 {[%emt 0:01:50]} 46. Bh4 {[%emt 0:00:17] [#] Against Rg3+} Nc3 $1 {[%emt 0:00:50]} 47. Rxe3 {[%emt 0:00:42]} (47. Rd7 $17 {was the only defense.}) 47... Bxe3 $19 {[%emt 0:00:06]} 48. Kf3 {[%emt 0:00:04]} Bc5 {[%emt 0:00:06]} ({Worse is} 48... Nxd5 49. Ke4 Nxf4 50. Bg5 $11) 49. f5 {[%emt 0:00:12]} Kf7 {[%emt 0:00:08]} ({Wrong is} 49... Nxd5 $2 50. Be1) 50. g5 $2 {[%emt 0:00:18]} (50. Bg5) 50... Nxd5 {[%emt 0:00:14]} 51. Ke4 {[%emt 0:00:42]} Ne7 {[%emt 0:03:16]} 52. Be1 {[%emt 0:00:28]} Bg1 {[%emt 0:01:03]} 53. h4 {[%emt 0:00:50]} Bh2 {[%emt 0:03:57]} 54. h5 {[%emt 0:00:25]} Be5 $2 {[%emt 0:01:46]} (54... h6 $19 55. gxh6 Ng8) 55. Bb4 {[%emt 0:00:58]} h6 {[%emt 0:01:42]} (55... Ng8 $5 {[%cal Rh7h6]} 56. Kd5 Ne7+ 57. Ke4 Ng8 $17) 56. gxh6 {[%emt 0:00:19]} Ng8 {[%emt 0:00:08]} 57. Kd5 $1 {[%emt 0:00:39]} Nf6+ {[%emt 0:00:02]} 58. Kc6 {[%emt 0:00:05]} d5 {[%emt 0:00:10][%cal Bd6d5,Bd5d4,Bd4d3][%mdl 32] And now ...d4 would win.} 59. Kb5 $2 {[%emt 0:00:52]} (59. Kc5 $11) 59... Bf4 $2 {[%emt 0:00:57]} ({Weaker is} 59... Nxh5 60. h7 $17) ({Better is} 59... d4 $19 {White must now prevent ...Nd5.} 60. Kc4 Ng4) 60. Bc3 {[%emt 0:00:32]} Be3 {[%emt 0:00:25] Threatens to win with ...d4.} 61. Be5 $2 {[%emt 0:00:34][%mdl 8192]} (61. Bb4 $1 $11) 61... Ke7 {[%emt 0:00:54]} 62. Kc6 $2 {[%emt 0:00:34]} (62. Kb4 Bxh6 63. Kc3) 62... d4 {[%emt 0:00:21] Black is clearly winning.} 63. Bd6+ {[%emt 0:00:08]} Kf7 {[%emt 0:00:11]} 64. Bc5 {[%emt 0:00:01]} Bf2 {[%emt 0:00:49]} 65. Bb4 {[%emt 0:00:20] [#]} d3 $1 {[%emt 0:00:18]} 66. Bd2 {[%emt 0:01:27]} Bh4 {[%emt 0:00:07]} 67. Bc3 {[%emt 0:00:34]} Bg5 {[%emt 0:00:11] Weighted Error Value: White=0.31/Black=0.27 (precise)} 0-1

[Event "Saint Louis Norm Congress-GM 2022"]
[Site "Saint Louis"]
[Date "2022.05.20"]
[Round "3.4"]
[White "Kavutskiy, Konstantin"]
[Black "Ruiz Castillo, Joshua Daniel"]
[Result "0-1"]
[ECO "E15"]
[WhiteElo "2407"]
[BlackElo "2473"]
[Annotator "TA"]
[PlyCount "226"]
[EventDate "2022.05.20"]
[EventType "tourn"]
[EventCountry "USA"]
[SourceTitle "playchess.com"]
[Source "ChessBase"]
[SourceQuality "1"]
[TimeControl "5400+30"]

{[%evp 22,226,0,0,0,0,4,1,6,0,15,0,0,0,0,0,-4,0,0,0,0,0,0,0,0,-8,0,-24,-23,-23,-15,-31,-18,-33,-31,-39,-25,-27,-25,-24,-14,-18,0,0,0,0,0,0,0,-10,0,-13,-21,-16,-16,-18,-7,-12,-14,-7,0,0,0,0,0,0,0,0,0,0,0,0,0,-14,0,-14,0,0,0,0,0,0,0,-6,-6,-6,-6,-6,-6,-14,-6,-192,-14,-14,-14,-14,-14,-14,-6,-6,-6,-6,-6,-6,-6,-14,-14,-14,-14,-14,-13,-33,-32,-41,-33,-33,0,-41,0,-185,-185,-185,-41,-41,-41,-97,-39,-46,-14,-14,-14,-20,-20,-20,-14,-14,-14,-14,-14,-14,-14,-14,-14,-14,0,-14,-14,-14,-14,-14,-14,-14,-14,-14,0,0,0,0,0,0,0,-14,-14,-41,0,-14,-14,-14,-14,-14,-14,-41,0,0,0,0,0,-11,-14,-20,-6,-25,-8,-28,-54,-136,0,0,0,-136,-175,-7,0,-192,-192,-192,-192,-29953,-12656,-29949,-279,-29970,-29972,-29972,-29973,-29981,-29979]} 1. d4 {[%emt 0:01:21]} Nf6 {[%emt 0:06:33]} 2. c4 {[%emt 0:00:12]} e6 {[%emt 0:00:04]} 3. Nf3 {[%emt 0:00:09]} b6 {[%emt 0:00:55]} 4. g3 {[%emt 0:00:10]} Ba6 {[%emt 0:00:05]} 5. b3 {[%emt 0:00:06]} Bb4+ {[%emt 0:00:04]} 6. Bd2 {[%emt 0:00:09]} Be7 {[%emt 0:00:06]} 7. Nc3 {[%emt 0:00:06]} O-O {[%emt 0:02:10]} 8. Bg2 {[%emt 0:01:17]} c6 {[%emt 0:00:16]} 9. e4 {[%emt 0:00:26]} d5 {[%emt 0:00:14]} 10. exd5 {[%emt 0:00:12]} cxd5 {[%emt 0:00:04]} 11. Ne5 {[%emt 0:00:09]} Bb7 {[%emt 0:00:05]} 12. O-O {[%emt 0:00:25]} Nc6 {[%emt 0:00:04]} 13. Bf4 {[%emt 0:00:47]} Na5 {[%emt 0:01:47]} 14. Rc1 {[%emt 0:00:31]} Rc8 {[%emt 0:00:47]} 15. cxd5 {[%emt 0:05:31]} Bb4 {[%emt 0:01:35]} (15... Ba3 $5 {[%cal Ra3c1]} 16. Rc2 Nxd5 17. Nxd5 Rxc2 18. Qxc2 Bxd5 $11) 16. Bd2 {[%emt 0:10:28]} (16. dxe6 {with more complications.} Bxg2 17. exf7+ Kh8 18. Kxg2 Bxc3 19. Qd3) 16... Bxc3 {[%emt 0:08:11]} 17. Bxc3 {[%emt 0:00:18]} Bxd5 {[%emt 0:00:06]} 18. Bxa5 {[%emt 0:08:02]} Rxc1 {[%emt 0:00:35]} 19. Qxc1 {[%emt 0:00:08]} Bxg2 {[%emt 0:00:03]} 20. Kxg2 {[%emt 0:03:40]} Qd5+ {[%emt 0:00:15]} 21. Kg1 {[%emt 0:00:12]} Qxa5 {[%emt 0:00:10]} 22. Qc2 {[%emt 0:01:05]} Qa3 {[%emt 0:05:39]} 23. Rd1 {[%emt 0:01:44]} h6 {[%emt 0:04:03]} 24. Nc4 {[%emt 0:03:17]} Qa6 {[%emt 0:02:31]} 25. a4 {[%emt 0:02:36]} Qb7 {[%emt 0:05:44]} 26. Qd3 {[%emt 0:01:31]} Rd8 {[%emt 0:00:17]} 27. Ne5 {[%emt 0:00:53]} Rc8 {[%emt 0:00:50]} 28. Nc4 {[%emt 0:01:54]} Qe7 {[%emt 0:12:23]} 29. Qd2 {[%emt 0:02:46]} Nd5 {[%emt 0:00:49]} 30. Rc1 {[%emt 0:01:08]} Qc7 {[%emt 0:01:28]} 31. Rc2 {[%emt 0:02:04]} Rd8 {[%emt 0:02:46]} 32. Ne5 {[%emt 0:00:52]} Qd6 {[%emt 0:00:10]} 33. Nc6 {[%emt 0:02:33]} Ra8 {[%emt 0:09:41]} 34. Qc1 {[%emt 0:04:43]} f6 {[%emt 0:06:51]} 35. Qe1 {[%emt 0:03:50]} Rc8 {[%emt 0:02:30]} 36. Nb4 {[%emt 0:01:49]} Rxc2 {[%emt 0:00:09]} 37. Nxc2 {[%emt 0:00:07]} Kf7 {[%emt 0:06:57]} 38. Qe2 {[%emt 0:00:33]} Qc6 {[%emt 0:00:31]} 39. Ne3 {[%emt 0:02:17]} Qc1+ {[%emt 0:10:35]} 40. Kg2 {[%emt 0:01:21]} Nxe3+ {[%emt 0:01:21]} 41. Qxe3 {[%emt 0:00:33]} Qxe3 {[%emt 0:00:37]} 42. fxe3 {[%emt 0:00:07]} e5 {[%emt 0:02:58]} 43. dxe5 {[%emt 0:05:03]} f5 {[%emt 0:00:02]} 44. Kf3 {[%emt 0:00:43]} Ke6 {[%emt 0:00:06]} 45. e4 {[%emt 0:00:08]} Kxe5 {[%emt 0:00:08]} 46. exf5 {[%emt 0:00:07]} Kxf5 {[%emt 0:00:03]} 47. h3 {[%emt 0:00:59]} Ke5 {[%emt 0:06:38]} 48. Ke3 {[%emt 0:00:12]} g6 {[%emt 0:01:07]} 49. Kd3 {[%emt 0:02:34]} Kd5 {[%emt 0:00:34]} 50. h4 {[%emt 0:04:26]} g5 {[%emt 0:02:16]} (50... Kc5 $5 51. Kc3 a5 $11) 51. hxg5 {[%emt 0:01:33]} hxg5 {[%emt 0:00:00]} 52. Ke3 {[%emt 0:00:23]} Kc5 {[%emt 0:00:34]} 53. Ke4 {[%emt 0:12:35]} Kb4 {[%emt 0:00:02]} 54. Kf5 {[%emt 0:00:06]} Kxb3 {[%emt 0:00:02]} 55. Kxg5 {[%emt 0:00:07]} Kxa4 {[%emt 0:00:01]} ({Much weaker is} 55... a5 $6 56. g4 Kxa4 57. Kh6 $17) 56. Kf6 $2 {[%emt 0:00:15]} (56. g4 $11 {and White stays safe.}) 56... b5 $2 {[%emt 0:00:02]} (56... Kb4 $19 57. g4 a5) 57. g4 $11 {[%emt 0:00:06]} b4 {[%emt 0:00:01]} 58. g5 {[%emt 0:00:05]} b3 {[%emt 0:00:01]} 59. g6 {[%emt 0:00:06]} b2 {[%emt 0:00:01]} 60. g7 {[%emt 0:00:06]} b1=Q {[%emt 0:00:02]} 61. g8=Q {[%emt 0:00:06]} Qb2+ {[%emt 0:01:24]} 62. Kf5 {[%emt 0:01:06]} Qc2+ {[%emt 0:00:18]} 63. Kf4 {[%emt 0:00:58]} Qf2+ {[%emt 0:00:01]} 64. Ke4 {[%emt 0:00:22]} Qe2+ {[%emt 0:00:01]} 65. Kf4 {[%emt 0:01:15]} a5 {[%emt 0:00:07]} 66. Kg3 {[%emt 0:02:02]} Qd3+ {[%emt 0:00:38]} 67. Kh2 {[%emt 0:00:25]} Qd6+ {[%emt 0:00:52]} 68. Kh3 {[%emt 0:00:43]} Qd3+ {[%emt 0:01:36]} 69. Kh2 {[%emt 0:00:10]} Qe2+ {[%emt 0:00:11]} 70. Kh3 $2 {[%emt 0:00:21]} (70. Kg3 $11) 70... Qf3+ $19 {[%emt 0:00:02]} 71. Kh2 {[%emt 0:00:08]} Qf4+ {[%emt 0:00:01]} (71... Ka3 $1 $19 {And now ...a4 would win.} 72. Qh7 a4) 72. Kh3 $15 {[%emt 0:00:49]} Kb4 {[%emt 0:01:08]} 73. Qd8 {[%emt 0:00:38]} ({White should play} 73. Qe6 $15) 73... Qe3+ {[%emt 0:02:33]} (73... a4 $17 74. Qe7+ Kb3) 74. Kh4 $15 {[%emt 0:00:21]} a4 {[%emt 0:00:28]} 75. Qd6+ {[%emt 0:00:28]} Qc5 {[%emt 0:00:11]} 76. Qb8+ {[%emt 0:01:30]} Kc4 {[%emt 0:00:26]} 77. Qg8+ {[%emt 0:00:18]} Kc3 {[%emt 0:00:31]} 78. Qg3+ {[%emt 0:00:18]} Kc2 {[%emt 0:00:06]} 79. Qg2+ {[%emt 0:00:23]} Kb3 {[%emt 0:00:13]} 80. Qf3+ {[%emt 0:00:37]} Qc3 {[%emt 0:00:05]} 81. Qd1+ {[%emt 0:00:21]} Qc2 {[%emt 0:00:06]} 82. Qf3+ {[%emt 0:00:13]} Qc3 {[%emt 0:00:03]} 83. Qd1+ {[%emt 0:00:12]} Ka3 {[%emt 0:00:21]} 84. Kh5 {[%emt 0:00:33]} Qc5+ {[%emt 0:00:10]} 85. Kh4 {[%emt 0:00:24]} Qe7+ {[%emt 0:00:44]} 86. Kh5 {[%emt 0:00:19]} Qe5+ {[%emt 0:00:02]} 87. Kh4 {[%emt 0:00:10]} Kb4 {[%emt 0:02:46]} 88. Qd2+ {[%emt 0:00:25]} Qc3 {[%emt 0:00:09]} 89. Qd6+ {[%emt 0:00:14]} Kb3 {[%emt 0:00:07]} 90. Qd1+ {[%emt 0:00:13]} Qc2 {[%emt 0:01:01]} 91. Qf3+ {[%emt 0:01:03]} Kb2 {[%emt 0:00:39]} 92. Qf6+ {[%emt 0:00:27]} Ka2 {[%emt 0:00:16]} (92... Qc3 $5 {[%cal Rc3f6]} 93. Qb6+ Ka1 94. Qg1+ Kb2 95. Qb6+ Ka1 $19) 93. Qe6+ {[%emt 0:00:53]} Qb3 {[%emt 0:00:04]} 94. Qe2+ {[%emt 0:00:10]} Ka3 {[%emt 0:00:01]} 95. Kh5 {[%emt 0:00:22]} Qd5+ {[%emt 0:00:06]} 96. Kh4 {[%emt 0:00:13]} Kb4 {[%emt 0:00:57]} 97. Qb2+ {[%emt 0:00:23]} Ka5 {[%emt 0:00:14]} 98. Qc3+ {[%emt 0:00:25]} Ka6 {[%emt 0:00:24]} 99. Qc8+ {[%emt 0:00:19]} Kb6 {[%emt 0:00:09]} 100. Qb8+ $1 {[%emt 0:00:14]} Ka5 {[%emt 0:00:08]} 101. Qc7+ {[%emt 0:00:35]} Kb5 {[%emt 0:00:04]} 102. Qb8+ {[%emt 0:00:16]} Kc4 {[%emt 0:00:09]} 103. Qc7+ $1 {[%emt 0:01:10]} Kd3 {[%emt 0:00:25]} (103... Kb4 $1 $17 {( -> ...Qc4+)} 104. Qe7+ Kb3 105. Qe3+ Kb2 106. Qf2+ Kc3) 104. Qg3+ $11 {[%emt 0:00:15]} Kc2 {[%emt 0:00:03]} (104... Kd2 $5 105. Qf4+ Kc3 106. Qxa4 Qd6 $11) 105. Qf2+ {[%emt 0:00:19]} (105. Qc7+ $1 $11 Kb2 106. Qg7+ Ka2 107. Qc3) 105... Qd2 $1 $17 {[%emt 0:00:37]} 106. Qf5+ {[%emt 0:00:30]} Qd3 {[%emt 0:00:24]} 107. Qf2+ $2 {[%emt 0:00:28]} (107. Qc5+ $11 {and White is okay.} Qc3 108. Qf5+ Kb3 109. Qb1+ Kc4 110. Qf1+ Qd3 111. Qf7+ Kc3 112. Qf8) 107... Kc3 $19 {[%emt 0:00:11]} 108. Qe1+ {[%emt 0:05:17]} Kb3 {[%emt 0:00:01]} 109. Qe8 $2 {[%emt 0:00:26]} (109. Kh5 $19) 109... a3 $1 {[%emt 0:01:59]} 110. Qb8+ {[%emt 0:01:40] [#]} Kc3 $1 {[%emt 0:00:05]} 111. Qa8 $2 {[%emt 0:00:07] [#]} (111. Kg5 $19) 111... Qc4+ $1 {[%emt 0:00:16]} 112. Kh5 {[%emt 0:00:10]} a2 {[%emt 0:00:14]} 113. Qf3+ {[%emt 0:00:14]} Kd2 {[%emt 0:00:20]} 0-1

[Event "Saint Louis Norm Congress-GM 2022"]
[Site "Saint Louis"]
[Date "2022.05.20"]
[Round "3.5"]
[White "Schitco, Ivan"]
[Black "Daggupati, Balaji"]
[Result "1/2-1/2"]
[ECO "D00"]
[WhiteElo "2484"]
[BlackElo "2486"]
[Annotator "TA"]
[PlyCount "86"]
[EventDate "2022.05.20"]
[EventType "tourn"]
[EventCountry "USA"]
[SourceTitle "playchess.com"]
[Source "ChessBase"]
[SourceQuality "1"]
[TimeControl "5400+30"]

{[%evp 9,86,-11,-6,-7,0,-14,0,-56,-53,-54,0,0,0,0,0,0,0,0,41,38,36,0,33,31,33,45,49,49,46,39,42,35,37,22,17,22,35,14,50,63,61,25,22,8,12,9,15,0,0,0,0,0,0,0,0,0,0,0,0,0,0,0,0,0,0,0,0,0,0,0,0,0,0,0,0,0,8,11,20]} 1. d4 {[%emt 0:00:04]} d5 {[%emt 0:00:12]} 2. Nf3 {[%emt 0:00:14]} Nf6 {[%emt 0:00:08]} 3. Bf4 {[%emt 0:00:12]} g6 {[%emt 0:06:02]} 4. Nc3 {[%emt 0:03:31]} Bg7 {[%emt 0:02:47]} 5. Nb5 {[%emt 0:00:55]} Na6 {[%emt 0:00:05]} 6. e3 {[%emt 0:01:48] D00: 1 d4 d5: Unusual lines.} O-O {[%emt 0:00:07] 6...0-0 scores better than 6...c6.} 7. h3 {[%emt 0:01:22]} Ne4 {[%emt 0:02:42]} 8. Bd3 {[%emt 0:07:48]} (8. Nd2 $11) 8... c6 $15 {[%emt 0:04:14]} 9. Nc3 {[%emt 0:01:33] [#]} Qa5 $146 {[%emt 0:09:04]} ({Better is} 9... Nxc3 $1 $15 10. bxc3 c5) ({Predecessor:} 9... Nxc3 10. bxc3 c5 11. O-O Bd7 12. c4 cxd4 13. exd4 Nb4 14. cxd5 Ba4 15. Qd2 Nxd3 16. Qxd3 Qxd5 {0-1 (27) Dzagnidze,N (2515)-Harika,D (2518) Lausanne 2020}) 10. O-O $11 {[%emt 0:03:04]} Nxc3 {[%emt 0:05:31]} 11. Qd2 {[%emt 0:01:27][%mdl 64] [#] Pin} c5 {[%emt 0:02:55][%cal Oc5c4] Strongly threatening ...c4!} 12. Qxc3 {[%emt 0:02:21]} Qxc3 {[%emt 0:02:31]} 13. bxc3 {[%emt 0:00:02]} cxd4 {[%emt 0:12:37]} 14. exd4 {[%emt 0:01:36]} Nb8 {[%emt 0:03:48]} 15. Rfe1 {[%emt 0:05:23]} Bf6 {[%emt 0:00:45]} 16. a4 {[%emt 0:02:40][%cal Ba2a4,Ba4a5][%mdl 32]} Nc6 {[%emt 0:07:17]} 17. a5 {[%emt 0:04:48]} Bd7 {[%emt 0:04:34]} 18. Reb1 {[%emt 0:02:29]} Nd8 {[%emt 0:01:06]} 19. Ne5 {[%emt 0:06:07]} Bxe5 {[%emt 0:03:28]} 20. Bxe5 {[%emt 0:03:44]} Rc8 {[%emt 0:00:05] Against c4} 21. Ra3 {[%emt 0:00:49]} f6 {[%emt 0:02:27]} 22. Bg3 {[%emt 0:05:07]} Re8 {[%emt 0:01:03]} 23. f3 {[%emt 0:02:35]} Bf5 {[%emt 0:07:59]} 24. Bb5 {[%emt 0:05:17]} Rf8 {[%emt 0:00:04]} 25. Rb2 {[%emt 0:01:10]} (25. a6 $5 {[%cal Ra6b7]} b6 26. Re1 $16) 25... g5 {[%emt 0:03:54]} 26. Kf2 {[%emt 0:08:21] The position is equal.} Kg7 {[%emt 0:01:59]} 27. Ke1 {[%emt 0:03:03]} h5 {[%emt 0:00:19]} 28. Bd3 {[%emt 0:02:30]} Bxd3 {[%emt 0:00:59]} 29. cxd3 {[%emt 0:00:16]} Rf7 {[%emt 0:01:45]} 30. Kd2 {[%emt 0:03:14]} e6 {[%emt 0:00:08]} 31. Rab3 {[%emt 0:01:56]} Rc6 {[%emt 0:00:24]} 32. Rb5 {[%emt 0:01:18]} Rd7 {[%emt 0:00:22]} 33. Rb1 {[%emt 0:01:09]} Kg6 {[%emt 0:01:05]} 34. h4 {[%emt 0:02:46]} gxh4 {[%emt 0:00:23]} 35. Bxh4 {[%emt 0:00:01]} Rdc7 {[%emt 0:00:09]} 36. Bg3 {[%emt 0:00:16]} Rg7 {[%emt 0:00:08] aiming for ...Kf5.} 37. Rg1 {[%emt 0:02:24]} Ra6 {[%emt 0:00:51]} 38. Bh4 {[%emt 0:02:44]} Nc6 {[%emt 0:03:28]} 39. g4 {[%emt 0:00:30] And now gxh5+ would win.} Rxa5 {[%emt 0:00:18]} 40. gxh5+ {[%emt 0:01:25]} Kxh5 {[%emt 0:00:05]} 41. Rxg7 {[%emt 0:00:26][%cal Ob5b7]} Rxb5 {[%emt 0:00:03]} 42. Bxf6 {[%emt 0:00:12]} Rb2+ {[%emt 0:02:09]} 43. Kc1 {[%emt 0:08:10]} Rf2 {[%emt 0:00:04] Weighted Error Value: White=0.08 (flawless) /Black=0.06 (flawless)} 1/2-1/2